bitfinex-derivatives/quotes_BNBF0:USTF0_20241225
["timestamp","ask_amount","ask_price","bid_price","bid_amount"]
[1735153580700,0.26165103,703.27,701.67,1.05502215]
[1735153580895,0.26165103,703.27,701.69,0.28502615]
[1735153581094,0.26165103,703.27,701.71,1.05502215]
[1735153581294,0.26165103,703.27,701.73,0.2850099]
[1735153581899,0.28438175,703.28,701.73,0.2850099]
[1735153582101,0.26165165,703.27,701.73,0.2850099]
[1735153583108,0.28438175,703.28,701.73,0.2850099]
[1735153583300,0.26163869,703.27,701.73,0.2850099]
[1735153583705,0.26163869,703.27,701.77,1.05502215]
[1735153583903,0.26163869,703.27,701.78,0.28498959]
[1735153584703,0.26163869,703.27,701.79,1.05502215]
[1735153585305,0.26163869,703.27,701.8,0.28498147]
[1735153585499,0.28438175,703.28,701.8,1.34000362]
[1735153586102,0.28438175,703.28,701.81,1.05502215]
[1735153586905,0.28438175,703.28,701.82,1.05502215]
[1735153587301,0.28438175,703.28,701.83,0.28496929]
[1735153587703,0.26164956,703.27,701.83,0.28496929]
[1735153588599,0.28438175,703.28,701.86,1.05502215]
[1735153588808,0.26165217,703.27,701.86,1.05502215]
[1735153589603,0.28438175,703.28,701.89,1.05502215]
[1735153589903,0.28438175,703.28,701.9,0.28494087]
[1735153590301,0.28438175,703.28,701.9,1.33996302]
[1735153591010,0.28438175,703.28,701.9,0.28494087]
[1735153593402,0.2616727,703.27,701.9,0.28494087]
[1735153594306,0.26167759,703.26,701.9,0.28494087]
[1735153594506,0.26167759,703.25,701.9,0.28494087]
[1735153594706,0.28438175,703.28,701.9,0.28494087]
[1735153594906,0.26167759,703.27,701.9,0.28494087]
[1735153597009,0.28438175,703.28,701.9,0.28494087]
[1735153597210,0.26167672,703.27,701.9,0.28494087]
[1735153601107,1.0640662,703.23,701.9,0.28494087]
[1735153601311,0.26167672,703.22,701.9,0.28494087]
[1735153601704,0.28441006,703.21,701.9,0.28494087]
[1735153601910,0.26167672,703.2,701.9,0.28494087]
[1735153602815,0.2468365,703.2,701.9,0.28494087]
[1735153603012,0.28441006,703.21,701.9,0.28494087]
[1735153603713,0.2617578,703.2,701.9,0.28494087]
[1735153604314,0.28441815,703.19,701.9,0.28494087]
[1735153604513,0.2617578,703.18,701.9,0.28494087]
[1735153604708,0.28442624,703.17,701.9,0.28494087]
[1735153604911,0.2617578,703.16,701.9,0.28494087]
[1735153605113,0.28443433,703.15,701.9,0.28494087]
[1735153605308,0.26174931,703.14,701.9,0.28494087]
[1735153605512,0.28444242,703.13,701.9,0.28494087]
[1735153605813,0.26174931,703.12,701.9,0.28494087]
[1735153606016,0.28445051,703.11,701.9,0.28494087]
[1735153606214,0.26174931,703.1,701.9,0.28494087]
[1735153606415,0.2844586,703.09,701.9,0.28494087]
[1735153606614,0.26174931,703.08,701.9,0.28494087]
[1735153606815,0.28446669,703.07,701.9,0.28494087]
[1735153607018,0.26174931,703.06,701.9,0.28494087]
[1735153608820,0.28446669,703.07,701.9,0.28494087]
[1735153609019,0.26175296,703.06,701.9,0.28494087]
[1735153609516,0.2617517,703.05,701.9,0.28494087]
[1735153609723,0.2617517,703.04,701.9,0.28494087]
[1735153609917,0.28446669,703.07,701.9,0.28494087]
[1735153610117,0.26175204,703.06,701.9,0.28494087]
[1735153610914,0.26175188,703.05,701.9,0.28494087]
[1735153611124,0.26175188,703.04,701.9,0.28494087]
[1735153611321,0.26175188,703.03,701.9,0.28494087]
[1735153611515,0.26175188,703.02,701.9,0.28494087]
[1735153611713,0.28446669,703.07,701.9,0.28494087]
[1735153611918,0.26175252,703.06,701.9,0.28494087]
[1735153614719,0.28446669,703.07,701.9,0.28494087]
[1735153614920,0.26176048,703.06,701.9,0.28494087]
[1735153615521,0.28446669,703.07,701.9,0.28494087]
[1735153619118,0.26175541,703.06,701.9,0.28494087]
[1735153619318,0.28446669,703.07,701.9,0.28494087]
[1735153619522,0.26175625,703.06,701.9,0.28494087]
[1735153620822,0.28446669,703.07,701.9,0.28494087]
[1735153621521,0.26175639,703.06,701.9,0.28494087]
[1735153624225,0.28446669,703.07,701.9,0.28494087]
[1735153680975,0.26172771,703.06,701.9,0.28494087]
[1735153682076,0.28446669,703.07,701.9,0.28494087]
[1735153682376,0.26171694,703.06,701.9,0.28494087]
[1735153682576,0.28446669,703.07,701.9,0.28494087]
[1735153682776,0.26171457,703.06,701.9,0.28494087]
[1735153684870,0.28446669,703.07,701.9,0.28494087]
[1735153779760,0.26177759,703.06,701.9,0.28494087]
[1735153781766,0.26177759,703.06,701.25,1.05502215]
[1735153782067,0.26177759,703.06,701.27,0.28519685]
[1735153783469,1.0640662,703.01,701.3,1.05502215]
[1735153783666,0.26177759,703.0,701.3,1.05502215]
[1735153784065,0.26177759,703.0,701.31,0.28518059]
[1735153784266,1.0640662,703.05,701.31,0.28518059]
[1735153784570,0.26183738,703.04,701.31,0.28518059]
[1735153785563,0.26183738,703.03,701.31,0.28518059]
[1735153785771,0.26183738,703.02,701.31,0.28518059]
[1735153785962,0.26183738,703.01,701.31,0.28518059]
[1735153786165,0.26183738,703.0,701.31,0.28518059]
[1735153786365,0.26183738,702.99,701.31,0.28518059]
[1735153786563,0.26183738,702.98,701.31,0.28518059]
[1735153786766,0.26183738,702.97,701.31,0.28518059]
[1735153786975,0.28446669,703.07,701.31,0.28518059]
[1735153787167,0.26183519,703.06,701.31,0.28518059]
[1735153788370,0.28447883,703.04,701.31,0.28518059]
[1735153788572,0.26183519,703.03,701.31,0.28518059]
[1735153788873,0.28449097,703.01,701.31,0.28518059]
[1735153789172,0.26183519,703.0,701.31,0.28518059]
[1735153789367,0.28450311,702.98,701.31,0.28518059]
[1735153789584,0.26183519,702.97,701.31,0.28518059]
[1735153789771,0.2845112,702.96,701.31,0.28518059]
[1735153789965,0.26183473,702.95,701.31,0.28518059]
[1735153790369,0.2845193,702.94,701.31,0.28518059]
[1735153790573,0.26183456,702.93,701.31,0.28518059]
[1735153790872,0.28452739,702.92,701.31,0.28518059]
[1735153791066,0.26183456,702.91,701.31,0.28518059]
[1735153791769,0.28453549,702.9,701.31,0.28518059]
[1735153792072,0.26183456,702.89,701.31,0.28518059]
[1735153792272,0.28454359,702.88,701.31,0.28518059]
[1735153792465,0.26183456,702.87,701.31,0.28518059]
[1735153792670,0.54638616,702.86,701.31,0.28518059]
[1735153792966,0.28455573,702.85,701.31,0.28518059]
[1735153806796,0.2618288,702.84,701.31,0.28518059]
[1735153806986,0.28456383,702.83,701.31,0.28518059]
[1735153807186,0.2618288,702.82,701.31,0.28518059]
[1735153807388,0.28457193,702.81,701.31,0.28518059]
[1735153807587,0.2618288,702.8,701.31,0.28518059]
[1735153808190,0.28458003,702.79,701.31,0.28518059]
[1735153813290,0.28458003,702.79,701.38,1.05844024]
[1735153813487,0.28458003,702.79,701.39,0.28514806]
[1735153814287,0.28458003,702.79,701.41,1.05844024]
[1735153814484,0.28458003,702.79,701.41,1.34358017]
[1735153814990,0.28458003,702.79,701.41,0.28513993]
[1735153826305,0.26184469,702.78,701.41,0.28513993]
[1735153827399,0.26184469,702.78,701.41,1.34358017]
[1735153828199,0.26184469,702.78,701.43,1.05844024]
[1735153828700,0.28458003,702.79,701.43,1.05844024]
[1735153828894,0.28458003,702.79,701.41,0.28513993]
[1735153829099,0.26184318,702.78,701.41,0.28513993]
[1735153830903,0.26184318,702.78,701.42,1.05844024]
[1735153831598,0.26184318,702.78,701.44,1.05844024]
[1735153832606,0.26184318,702.78,701.43,1.05844024]
[1735153833399,0.26184318,702.78,701.41,0.28513993]
[1735153833400,0.26184318,702.78,701.42,1.05844024]
[1735153834211,0.26184318,702.78,701.43,1.05844024]
[1735153836311,0.26183808,702.77,701.43,1.05844024]
[1735153836539,0.28458003,702.79,701.41,0.28513993]
[1735153838910,0.26184443,702.78,701.41,0.28513993]
[1735153839513,0.28458003,702.79,701.41,0.28513993]
[1735153839712,0.26186197,702.78,701.41,0.28513993]
[1735153839913,0.28458812,702.77,701.41,0.28513993]
[1735153851414,0.28458812,702.77,701.52,1.05844024]
[1735153851620,0.28458812,702.77,701.53,0.28509115]
[1735153862531,1.06059872,703.43,701.53,0.28509115]
[1735153862822,0.26171093,703.42,701.53,0.28509115]
[1735153863032,0.28433323,703.4,701.53,0.28509115]
[1735153863429,0.26171343,703.39,701.53,0.28509115]
[1735153863734,0.28434536,703.37,701.53,0.28509115]
[1735153863929,0.26171343,703.36,701.53,0.28509115]
[1735153864124,0.28435749,703.34,701.53,0.28509115]
[1735153864328,0.26171274,703.33,701.53,0.28509115]
[1735153864527,0.28436558,703.32,701.53,0.28509115]
[1735153864825,0.26171274,703.31,701.53,0.28509115]
[1735153865431,0.26171274,703.31,701.54,1.05844024]
[1735153866030,0.28436558,703.32,701.54,1.05844024]
[1735153866226,0.26169075,703.31,701.53,0.28509115]
[1735153867132,0.28437366,703.3,701.53,0.28509115]
[1735153867329,0.26169075,703.29,701.53,0.28509115]
[1735153867832,0.28438175,703.28,701.53,0.28509115]
[1735153868025,0.26169075,703.27,701.53,0.28509115]
[1735153868633,0.28438984,703.26,701.53,0.28509115]
[1735153869335,0.26168355,703.25,701.53,0.28509115]
[1735153869530,0.28438984,703.26,701.53,0.28509115]
[1735153875842,0.26167328,703.25,701.53,0.28509115]
[1735153877240,0.26167423,703.24,701.53,0.28509115]
[1735153877539,0.26167423,703.23,701.53,0.28509115]
[1735153877740,0.26167423,703.22,701.53,0.28509115]
[1735153877935,0.26167423,703.21,701.53,0.28509115]
[1735153878134,0.26167423,703.2,701.53,0.28509115]
[1735153878337,0.54609238,703.19,701.53,0.28509115]
[1735153878548,0.26167423,703.18,701.53,0.28509115]
[1735153880838,0.26167423,703.18,701.53,1.34353139]
[1735153881436,0.26167423,703.18,701.57,1.05844024]
[1735153881660,0.26167423,703.18,701.58,0.28507084]
[1735153882343,0.28442624,703.17,701.59,1.05844024]
[1735153882639,0.26167423,703.16,701.59,1.05844024]
[1735153882839,0.26175467,703.16,701.59,1.05844024]
[1735153883346,0.26175467,703.16,701.58,0.28507084]
[1735153884945,0.28443433,703.15,701.58,0.28507084]
[1735153885145,0.26175467,703.14,701.58,0.28507084]
[1735153885344,0.28443433,703.15,701.58,0.28507084]
[1735153885644,0.26169803,703.14,701.58,0.28507084]
[1735153885840,0.26169803,703.14,701.7,1.05844024]
[1735153886040,0.26169803,703.14,701.71,0.28501802]
[1735153888207,0.28443433,703.15,701.71,0.28501802]
[1735153888341,0.26170575,703.14,701.71,0.28501802]
[1735153891048,0.26170441,703.13,701.71,0.28501802]
[1735153891247,0.28443433,703.15,701.71,0.28501802]
[1735153891448,0.26170441,703.14,701.71,0.28501802]
[1735153891844,0.28443433,703.15,701.71,0.28501802]
[1735153892249,0.26169968,703.14,701.71,0.28501802]
[1735153894344,0.28444242,703.13,701.71,0.28501802]
[1735153894550,0.26169968,703.12,701.71,0.28501802]
[1735153895754,0.28445051,703.11,701.71,0.28501802]
[1735153895955,0.26169968,703.1,701.71,0.28501802]
[1735153896170,0.2844586,703.09,701.71,0.28501802]
[1735153896352,0.26169968,703.08,701.71,0.28501802]
[1735153896552,0.28446669,703.07,701.71,0.28501802]
[1735153896774,0.26169968,703.06,701.71,0.28501802]
[1735153898051,0.28446669,703.07,701.71,0.28501802]
[1735153898251,0.26173532,703.06,701.71,0.28501802]
[1735153899249,0.28446669,703.07,701.71,0.28501802]
[1735153903456,0.26173114,703.06,701.71,0.28501802]
[1735153903952,0.28446669,703.07,701.71,0.28501802]
[1735153906460,0.26173307,703.06,701.71,0.28501802]
[1735153910768,0.26173095,703.05,701.71,0.28501802]
[1735153910954,0.26173095,703.04,701.71,0.28501802]
[1735153911157,0.26173095,703.03,701.71,0.28501802]
[1735153911459,0.26173095,703.02,701.71,0.28501802]
[1735153911662,0.26173095,703.01,701.71,0.28501802]
[1735153911869,0.28446669,703.07,701.71,0.28501802]
[1735153912159,0.261731,703.06,701.71,0.28501802]
[1735153913456,0.26174329,703.05,701.71,0.28501802]
[1735153913661,0.26174329,703.04,701.71,0.28501802]
[1735153913861,0.26174329,703.03,701.71,0.28501802]
[1735153914060,0.26174329,703.02,701.71,0.28501802]
[1735153914262,0.26174254,703.01,701.71,0.28501802]
[1735153914455,0.26174254,703.0,701.71,0.28501802]
[1735153914654,0.26174254,702.99,701.71,0.28501802]
[1735153914860,0.28446669,703.07,701.71,0.28501802]
[1735153915162,0.26173998,703.06,701.71,0.28501802]
[1735153919165,0.26173385,703.05,701.71,0.28501802]
[1735153919365,0.26173385,703.04,701.71,0.28501802]
[1735153919564,0.26173385,703.03,701.71,0.28501802]
[1735153919768,0.26173385,703.02,701.71,0.28501802]
[1735153919964,0.26173385,703.01,701.71,0.28501802]
[1735153920265,0.26173385,703.0,701.71,0.28501802]
[1735153920466,0.28446669,703.07,701.71,0.28501802]
[1735153920666,0.26174067,703.06,701.71,0.28501802]
[1735153920862,0.28446669,703.07,701.71,0.28501802]
[1735153920863,0.26174187,703.05,701.71,0.28501802]
[1735153921061,0.26174187,703.04,701.71,0.28501802]
[1735153921260,0.26173443,703.06,701.71,0.28501802]
[1735153921462,0.26173443,703.05,701.71,0.28501802]
[1735153921660,0.26173443,703.04,701.71,0.28501802]
[1735153921864,0.26173443,703.03,701.71,0.28501802]
[1735153922065,0.28446669,703.07,701.71,0.28501802]
[1735153922262,0.26172675,703.06,701.71,0.28501802]
[1735153923963,0.26173866,703.05,701.71,0.28501802]
[1735153924164,0.26173866,703.04,701.71,0.28501802]
[1735153924369,0.26173866,703.03,701.71,0.28501802]
[1735153924565,0.26173866,703.02,701.71,0.28501802]
[1735153924764,0.54622963,703.01,701.71,0.28501802]
[1735153924967,1.06059872,703.08,701.71,0.28501802]
[1735153924968,0.54623368,703.0,701.71,0.28501802]
[1735153925166,0.54623772,702.99,701.71,0.28501802]
[1735153925368,0.26173866,702.98,701.71,0.28501802]
[1735153925772,0.28450716,702.97,701.71,0.28501802]
[1735153925966,0.26173866,702.96,701.71,0.28501802]
[1735153926670,0.28450716,702.97,701.71,0.28501802]
[1735153926671,0.26178589,702.95,701.71,0.28501802]
[1735153926872,0.26178872,702.94,701.71,0.28501802]
[1735153927068,0.28450716,702.97,701.71,0.28501802]
[1735153928972,0.26177721,702.96,701.71,0.28501802]
[1735153930274,0.28450716,702.97,701.71,0.28501802]
[1735153935880,0.26178764,702.96,701.71,0.28501802]
[1735153936477,0.28450716,702.97,701.71,0.28501802]
[1735153936983,0.26178968,702.96,701.71,0.28501802]
[1735153937375,0.28450716,702.97,701.71,0.28501802]
[1735153940879,0.26177991,702.96,701.71,0.28501802]
[1735153941077,0.54629111,702.96,701.71,0.28501802]
[1735153941280,0.2845112,702.96,701.71,0.28501802]
[1735153943882,0.2617899,702.95,701.71,0.28501802]
[1735153944386,0.2845193,702.94,701.71,0.28501802]
[1735153944588,0.2617899,702.93,701.71,0.28501802]
[1735153946090,0.261817,702.92,701.71,0.28501802]
[1735153946287,0.261817,702.91,701.71,0.28501802]
[1735153946487,0.261817,702.9,701.71,0.28501802]
[1735153946691,0.261817,702.89,701.71,0.28501802]
[1735153946887,0.261817,702.93,701.71,0.28501802]
[1735153947092,0.261817,702.92,701.71,0.28501802]
[1735153947390,0.261817,702.91,701.71,0.28501802]
[1735153947590,0.54635249,702.9,701.71,0.28501802]
[1735153947786,0.261817,702.89,701.71,0.28501802]
[1735153948187,0.261817,702.89,701.33,1.05844024]
[1735153948388,0.261817,702.89,701.34,0.28516839]
[1735153948588,0.28454359,702.88,701.34,0.28516839]
[1735153948785,0.261817,702.87,701.34,0.28516839]
[1735153948990,0.54639463,702.86,701.34,0.28516839]
[1735153949291,0.54639868,702.85,701.34,0.28516839]
[1735153949491,0.54640273,702.84,701.34,0.28516839]
[1735153949691,0.54640678,702.83,701.34,0.28516839]
[1735153949991,0.54641083,702.82,701.34,0.28516839]
[1735153950195,0.54641488,702.81,701.34,0.28516839]
[1735153950400,0.26184295,702.8,701.34,0.28516839]
[1735153950593,0.28458003,702.79,701.34,0.28516839]
[1735153951293,0.26184681,702.78,701.34,0.28516839]
[1735153951490,0.28458812,702.77,701.34,0.28516839]
[1735153952294,0.26185953,702.76,701.34,0.28516839]
[1735153952594,0.28459622,702.75,701.34,0.28516839]
[1735153953194,0.26186433,702.74,701.34,0.28516839]
[1735153953500,0.28460432,702.73,701.34,0.28516839]
[1735153953696,0.26186433,702.72,701.34,0.28516839]
[1735153953893,0.28461242,702.71,701.34,0.28516839]
[1735153954495,0.26189347,702.7,701.34,0.28516839]
[1735153954899,0.28462052,702.69,701.34,0.28516839]
[1735153955994,0.26189575,702.68,701.34,0.28516839]
[1735153956189,0.28462863,702.67,701.34,0.28516839]
[1735153957699,0.2619062,702.66,701.34,0.28516839]
[1735153958294,0.28463673,702.65,701.34,0.28516839]
[1735153958491,0.2619062,702.64,701.34,0.28516839]
[1735153958691,0.28464483,702.63,701.34,0.28516839]
[1735153958995,0.2619062,702.62,701.34,0.28516839]
[1735153959298,0.28465293,702.61,701.34,0.28516839]
[1735153959617,0.2619062,702.6,701.34,0.28516839]
[1735153959797,0.28466103,702.59,701.34,0.28516839]
[1735153960100,0.26192926,702.58,701.34,0.28516839]
[1735153960397,0.28466103,702.59,701.34,0.28516839]
[1735153960597,0.26193173,702.58,701.34,0.28516839]
[1735153961392,0.28466103,702.59,701.34,0.28516839]
[1735153961593,0.26193178,702.58,701.34,0.28516839]
[1735153961993,0.28466103,702.59,701.34,0.28516839]
[1735153962197,0.26193177,702.58,701.34,0.28516839]
[1735153965657,0.28466103,702.59,701.34,0.28516839]
[1735153965803,0.26192982,702.58,701.34,0.28516839]
[1735153970206,0.28466103,702.59,701.34,0.28516839]
[1735153980111,0.2619176,702.58,701.34,0.28516839]
[1735153980511,0.2619157,702.57,701.34,0.28516839]
[1735153980716,0.2619157,702.56,701.34,0.28516839]
[1735153981012,0.2619157,702.55,701.34,0.28516839]
[1735153981215,0.2619157,702.54,701.34,0.28516839]
[1735153981412,0.2619157,702.53,701.34,0.28516839]
[1735153981715,0.26192755,702.52,701.34,0.28516839]
[1735153981918,0.26192755,702.51,701.34,0.28516839]
[1735153982116,0.26192755,702.5,701.34,0.28516839]
[1735153982317,0.28466103,702.59,701.34,0.28516839]
[1735153982517,0.26192351,702.58,701.34,0.28516839]
[1735153984520,0.26192195,702.57,701.34,0.28516839]
[1735153984725,0.26192195,702.56,701.34,0.28516839]
[1735153985020,0.26192195,702.55,701.34,0.28516839]
[1735153985225,0.26192195,702.54,701.34,0.28516839]
[1735153985520,0.28466103,702.59,701.34,0.28516839]
[1735153985722,0.26192301,702.58,701.34,0.28516839]
[1735153987319,0.26193081,702.57,701.34,0.28516839]
[1735153987518,0.28466103,702.59,701.34,0.28516839]
[1735153987719,0.26191446,702.58,701.34,0.28516839]
[1735153988122,0.26191678,702.57,701.34,0.28516839]
[1735153988322,0.26191678,702.56,701.34,0.28516839]
[1735153988534,0.26191678,702.55,701.34,0.28516839]
[1735153988723,0.26191678,702.54,701.34,0.28516839]
[1735153989022,0.28466103,702.59,701.34,0.28516839]
[1735153989224,0.26191524,702.58,701.34,0.28516839]
[1735153990123,0.26191587,702.57,701.34,0.28516839]
[1735153990323,0.26191587,702.56,701.34,0.28516839]
[1735153990625,0.28466103,702.59,701.34,0.28516839]
[1735153997931,1.06059872,703.19,701.44,1.05844024]
[1735153998127,0.54618649,703.18,701.44,1.05844024]
[1735153998326,0.2617643,703.17,701.44,1.05844024]
[1735153998832,0.2617643,703.17,701.34,0.28516839]
[1735154000032,0.28443028,703.16,701.34,0.28516839]
[1735154000229,0.2617643,703.15,701.34,0.28516839]
[1735154000429,0.28443837,703.14,701.34,0.28516839]
[1735154000634,0.2617643,703.13,701.34,0.28516839]
[1735154001134,0.28444646,703.12,701.34,0.28516839]
[1735154001336,0.26177685,703.11,701.34,0.28516839]
[1735154001534,0.28445455,703.1,701.34,0.28516839]
[1735154001736,0.26177685,703.09,701.34,0.28516839]
[1735154002237,0.28446265,703.08,701.34,0.28516839]
[1735154002536,0.26177685,703.07,701.34,0.28516839]
[1735154002737,0.28447074,703.06,701.34,0.28516839]
[1735154003628,0.26177968,703.05,701.34,0.28516839]
[1735154003829,0.28447883,703.04,701.34,0.28516839]
[1735154004536,0.26177905,703.03,701.34,0.28516839]
[1735154004736,0.28448692,703.02,701.34,0.28516839]
[1735154004931,0.26177905,703.01,701.34,0.28516839]
[1735154005736,0.2617812,703.0,701.34,0.28516839]
[1735154006039,0.2617812,702.99,701.34,0.28516839]
[1735154006241,0.2617812,702.98,701.34,0.28516839]
[1735154006741,0.28450716,702.97,701.34,0.28516839]
[1735154006934,0.2617812,702.96,701.34,0.28516839]
[1735154007340,0.28451525,702.95,701.34,0.28516839]
[1735154007538,0.2617812,702.94,701.34,0.28516839]
[1735154008340,0.28451525,702.95,701.34,0.28516839]
[1735154008643,0.26179456,702.94,701.34,0.28516839]
[1735154009936,0.28451525,702.95,701.34,0.28516839]
[1735154010936,0.26179449,702.94,701.34,0.28516839]
[1735154011133,0.28451525,702.95,701.34,0.28516839]
[1735154011337,0.26179336,702.94,701.34,0.28516839]
[1735154011541,0.28451525,702.95,701.34,0.28516839]
[1735154021838,0.26182734,702.94,701.34,0.28516839]
[1735154022043,0.28452335,702.93,701.34,0.28516839]
[1735154026947,0.26182784,702.92,701.34,0.28516839]
[1735154027146,0.28453144,702.91,701.34,0.28516839]
[1735154027348,0.28453144,702.91,701.41,1.05844024]
[1735154027648,0.2618275,702.9,701.41,1.05844024]
[1735154027946,0.28453954,702.89,701.43,1.05844024]
[1735154028147,0.2618275,702.88,701.43,1.05844024]
[1735154028445,0.28454764,702.87,701.43,1.05844024]
[1735154028641,0.2618275,702.86,701.43,1.05844024]
[1735154028844,0.28455573,702.85,701.43,1.05844024]
[1735154029045,0.2618275,702.84,701.43,1.05844024]
[1735154029848,0.28456383,702.83,701.45,1.05844024]
[1735154030043,0.26182642,702.82,701.45,1.05844024]
[1735154030347,0.5463943,702.82,701.45,1.05844024]
[1735154030542,0.26182642,702.81,701.45,1.05844024]
[1735154030748,0.26182642,702.81,701.43,1.05844024]
[1735154030944,0.28456788,702.82,701.43,1.05844024]
[1735154031149,0.26182819,702.81,701.43,1.05844024]
[1735154031748,0.26182819,702.81,701.39,1.05844024]
[1735154031950,0.26182819,702.81,701.39,1.3435883]
[1735154032751,0.26182819,702.81,701.4,1.05844024]
[1735154033050,0.28456788,702.82,701.4,1.05844024]
[1735154033245,0.26182352,702.81,701.4,1.05844024]
[1735154034545,0.26182352,702.81,701.41,1.05844024]
[1735154035351,0.26182352,702.81,701.42,1.05844024]
[1735154035751,0.28456788,702.82,701.42,1.05844024]
[1735154036051,0.26181996,702.81,701.42,1.05844024]
[1735154036251,0.26181996,702.81,701.43,1.05844024]
[1735154036448,0.28456788,702.82,701.43,1.05844024]
[1735154037153,0.28456788,702.82,701.4,1.05844024]
[1735154038151,0.28456788,702.82,701.39,1.3435883]
[1735154038946,0.28456788,702.82,701.42,1.05844024]
[1735154040150,0.26182072,702.81,701.42,1.05844024]
[1735154040554,0.26182072,702.81,701.49,1.05844024]
[1735154040757,0.28456788,702.82,701.49,1.05844024]
[1735154041250,0.26180969,702.81,701.49,1.05844024]
[1735154041654,0.26180969,702.81,701.51,1.05844024]
[1735154042152,0.26181047,702.8,701.51,1.05844024]
[1735154043653,0.26181344,702.79,701.5,1.05844024]
[1735154043854,0.26180969,702.81,701.5,1.05844024]
[1735154044055,0.26181302,702.8,701.5,1.05844024]
[1735154044455,0.26181302,702.8,701.51,1.05844024]
[1735154045657,0.26180969,702.81,701.51,1.05844024]
[1735154046254,0.26180969,702.81,701.45,1.05844024]
[1735154047056,0.26180969,702.81,701.53,1.05844024]
[1735154048258,0.26180969,702.81,701.55,1.05844024]
[1735154048459,0.26180969,702.81,701.56,0.28507896]
[1735154050662,0.28456788,702.82,701.56,0.28507896]
[1735154080378,1.06059872,703.83,701.56,0.28507896]
[1735154080675,0.28420394,703.72,701.56,0.28507896]
[1735154080878,0.26170285,703.71,701.56,0.28507896]
[1735154081080,0.28424837,703.61,701.56,0.28507896]
[1735154081381,0.26170285,703.6,701.56,0.28507896]
[1735154081576,0.28426049,703.58,701.56,0.28507896]
[1735154081777,0.26170285,703.57,701.56,0.28507896]
[1735154081980,0.28427261,703.55,701.56,0.28507896]
[1735154082177,0.26170285,703.54,701.56,0.28507896]
[1735154082380,0.28428473,703.52,701.56,0.28507896]
[1735154082579,0.26170285,703.51,701.56,0.28507896]
[1735154082780,0.28429686,703.49,701.56,0.28507896]
[1735154082980,0.26170285,703.48,701.56,0.28507896]
[1735154083180,0.28430898,703.46,701.56,0.28507896]
[1735154083374,0.26170783,703.45,701.56,0.28507896]
[1735154083575,0.28432111,703.43,701.56,0.28507896]
[1735154083779,0.26170783,703.42,701.56,0.28507896]
[1735154084078,0.28433323,703.4,701.56,0.28507896]
[1735154086878,0.26170642,703.39,701.56,0.28507896]
[1735154087082,0.28434536,703.37,701.56,0.28507896]
[1735154087282,0.26170642,703.36,701.56,0.28507896]
[1735154087477,0.28435345,703.35,701.56,0.28507896]
[1735154087683,0.26170642,703.34,701.56,0.28507896]
[1735154088284,0.28436153,703.33,701.59,1.05844024]
[1735154088483,0.26170411,703.32,701.6,0.28506271]
[1735154088678,0.28436962,703.31,701.6,0.28506271]
[1735154088879,0.26170411,703.3,701.6,0.28506271]
[1735154089325,0.28437771,703.29,701.6,0.28506271]
[1735154089681,0.26170292,703.28,701.6,0.28506271]
[1735154089885,0.28438579,703.27,701.6,0.28506271]
[1735154112807,0.28438579,703.27,701.69,1.05844024]
[1735154113009,0.28438579,703.27,701.71,0.28501802]
[1735154114512,0.28438579,703.27,701.71,1.34345826]
[1735154115713,0.28438579,703.27,701.71,0.28501802]
[1735154116305,0.28438579,703.27,701.79,1.05844024]
[1735154118333,0.28438579,703.27,701.92,1.05844024]
[1735154119413,0.28438579,703.27,701.72,2.54716115]
[1735154119414,0.28438579,703.27,701.96,1.05844024]
[1735154120813,0.28438579,703.27,701.91,1.05844024]
[1735154121809,0.28438579,703.27,701.86,1.05844024]
[1735154122912,0.28438579,703.27,701.71,0.28501802]
[1735154123913,1.06059872,704.3,701.71,0.28501802]
[1735154124116,0.28401829,704.18,701.71,0.28501802]
[1735154124315,0.26152139,704.17,701.71,0.28501802]
[1735154126221,0.26148174,704.16,701.71,0.28501802]
[1735154126415,0.26148174,704.17,701.71,0.28501802]
[1735154126619,0.28401829,704.18,701.71,0.28501802]
[1735154126620,0.26148174,704.16,701.71,0.28501802]
[1735154126821,0.26148174,704.15,701.84,1.05844024]
[1735154127021,0.26148174,704.14,701.84,1.05844024]
[1735154127320,0.26148174,704.13,701.84,1.05844024]
[1735154127621,0.26149072,704.12,701.87,1.05844024]
[1735154127820,0.26149072,704.11,701.87,1.05844024]
[1735154128018,0.28401829,704.18,701.87,1.05844024]
[1735154128019,0.26149072,704.1,701.87,1.05844024]
[1735154128220,0.26149072,704.09,701.87,1.05844024]
[1735154128420,1.06059872,704.06,701.96,1.05844024]
[1735154128622,0.26149072,704.05,701.96,1.05844024]
[1735154128820,1.06059872,704.06,701.96,1.05844024]
[1735154129322,1.06059872,704.09,701.71,0.28501802]
[1735154130322,0.28401829,704.18,701.71,0.28501802]
[1735154136625,0.26147556,704.17,701.71,0.28501802]
[1735154137221,0.26147373,704.16,701.71,0.28501802]
[1735154137425,0.26147373,704.15,701.71,0.28501802]
[1735154137628,0.28401829,704.18,701.71,0.28501802]
[1735154137924,0.26147399,704.17,701.71,0.28501802]
[1735154140032,0.26147364,704.16,701.71,0.28501802]
[1735154140331,0.26147364,704.15,701.71,0.28501802]
[1735154140530,0.26147364,704.14,701.71,0.28501802]
[1735154140826,0.26147364,704.13,701.71,0.28501802]
[1735154141042,0.26147364,704.12,701.71,0.28501802]